Cogmind - Beta 14 @@@ ROGUE MODE // 2024.08.13 @ 17:14:28 Player: UnifiBg Result: Destroyed by H-61 Shepherd with Heavy Assault Cannon Performance ------------- Evolutions (3) 1500 Regions Visited (4) 800 Robots Destroyed (111) 555 Value Destroyed (3574) 3574 Prototype IDs (6) 120 Alien Tech Used (0) 0 Bonus (273) 273 TOTAL SCORE: 6822 Bonus ------- High Alert Combat Kills 273 Cogmind --------- Core Integrity 0/700 Matter 266/300 Energy 359/500 System Corruption 26% Temperature Cool (0) Movement Core (300) Ox5 Location -7/Factory Parts ------- > --- POWER (1) -------- (None) > --- PROPULSION (4) --- (None) > --- UTILITY (5) ------ Large Battery Compact Battery Improved Sensor Array Advanced Terrain Scan Processor Advanced Terrain Scan Processor > --- WEAPON (3) ------- Heavy Ion Cannon Mini Assault Cannon > --- INVENTORY (5) ---- (None) Peak State ------------ > --- POWER ------------ Improved Deuterium Engine > --- PROPULSION ------- Advanced Treads Carbon-fiber Leg Compact Wheel > --- UTILITY ---------- Improved Heat Sink Medium Storage Unit Improved Sensor Array Improved Signal Interpreter Improved Field Recycling Unit > --- WEAPON ----------- Shock Rifle Heavy Ion Cannon Mini Assault Cannon > --- INVENTORY -------- Light Nuclear Core Light Nuclear Core Micro Nuclear Core Angular Momentum Engine Large Battery Advanced Terrain Scan Processor Heavy Ion Cannon Heavy Ion Cannon Heavy Hammer [Rating: 40] Favorites ----------- Power Cooled Ion Engine Engine Cooled Ion Engine Power Core Light Nuclear Core Propulsion Improved Treads Treads Improved Treads Leg Carbon-fiber Leg Wheel Armored Wheel Utility Improved Power Shielding Device Seismic Detector Storage Medium Storage Unit Processor Improved Signal Interpreter Hackware System Shield Protection Improved Power Shielding Weapon Assault Rifle Energy Gun Heavy Particle Gun Energy Cannon Ion Cannon Ballistic Gun Assault Rifle Ballistic Cannon Light Cannon Launcher Rocket Launcher Slashing Weapon Katana Build | -11 -10 -9 -8 -7 ------- Run | Yrd Mat Mat Mat Fac Slots Evolved 6 | . . 2 2 2 Power . | . . . . . Propulsion 2 | . . 1 1 . Utility 3 | . . 1 1 1 Weapon 1 | . . . . 1 Parts Attached 158 | 7 8 60 24 59 Power 12 | 1 1 6 1 3 Engine 11 | 1 1 6 1 2 Core 1 | . . . . 1 Reactor . | . . . . . Propulsion 47 | 2 . 20 7 18 Treads 16 | . . 9 4 3 Leg 12 | . . 6 2 4 Wheel 19 | 2 . 5 1 11 Hover . | . . . . . Flight . | . . . . . Utility 36 | 2 . 10 7 17 Device 11 | 1 . 2 . 8 Storage 10 | 1 . 2 2 5 Processor 4 | . . . 2 2 Hackware 1 | . . . . 1 Protection 10 | . . 6 3 1 Artifact . | . . . . . Weapon 63 | 2 7 24 9 21 Energy Gun 11 | 2 . 3 4 2 Energy Cannon 5 | . . . . 5 Ballistic Gun 31 | . 7 12 2 10 Ballistic Cannon 5 | . . 2 1 2 Launcher 5 | . . 1 2 2 Special Weapon . | . . . . . Impact Weapon . | . . . . . Slashing Weapon 6 | . . 6 . . Piercing Weapon . | . . . . . Special Melee Weapon . | . . . . . Unidentified Prototypes 6 | . . 3 2 1 Parts Lost 53 | . . 7 6 40 Power 4 | . . . . 4 Propulsion 19 | . . . 5 14 Utility 16 | . . 5 1 10 Weapon 14 | . . 2 . 12 Highest Loss Streak 14 | . . 2 4 14 To Critical Strikes . | . . . . . Average Slot Usage (%) 97 | . 100 98 98 93 Engine 9 | . 14 11 9 6 Treads 13 | . . 15 17 11 Leg 3 | . . 4 2 4 Wheel 14 | . 28 12 15 10 Device 4 | . 14 3 . 6 Storage 12 | . 14 13 9 15 Processor 1 | . . . . 6 Protection 13 | . . 16 25 6 Energy Gun 3 | . 7 2 4 3 Energy Cannon 1 | . . . . 5 Ballistic Gun 12 | . 20 14 8 7 Ballistic Cannon 3 | . . 4 4 3 Peak Build Rating 40 | 7 9 19 32 40 Average Rating 20 | 5 8 15 27 32 On Entrance 12 | . 7 9 19 27 Naked Turns . | . . . . . Heaviest Build 49 | 15 17 33 41 49 Greatest Support 46 | 20 20 46 46 44 Greatest Overweight (x) 7 | . . 2 4 7 Average Overweight (x) . | . . . . 1 Largest Inventory Capacity 10 | 8 8 10 10 10 Average Capacity 9 | 7 8 8 10 9 Most Carried 10 | 5 8 10 10 10 Average Carried 8 | 1 7 8 9 8 Final Capacity 10 | 8 8 10 10 5 Final Carried 10 | 5 8 10 10 . Class Distribution -------------------- 66% | Mutant 15% | Scavenger-Mutant 10% | Scavenger-Tank 4% | Scavenger-Skirmisher Dominant Class ---------------- Mutant | -10/Materials Mutant | -9/Materials Mutant | -8/Materials Scavenger-Tank | -7/Factory Resources | -11 -10 -9 -8 -7 ----------- Run | Yrd Mat Mat Mat Fac Matter Collected 3586 | 270 80 1183 1094 959 Remotely . | . . . . . Salvage Created 4154 | 155 . 1274 1202 1523 Parts 229 | 15 . 80 64 70 Haulers Intercepted 1 | . . 1 . . Recyclers Shooed 8 | 1 . 1 1 5 Parts Field Recycled 8 | . . . . 8 Retrieved Matter 64 | . . . . 64 Parts Self-Destructed . | . . . . . Prevented . | . . . . . Kills | -11 -10 -9 -8 -7 ------- Run | Yrd Mat Mat Mat Fac Combat Hostiles Destroyed 82 | . . 30 27 25 Guns 59 | . . 22 21 16 Cannons 21 | . . 6 6 9 AOE 2 | . . 2 . . Classes Destroyed 14 | 2 . 9 . 3 Worker 6 | . . 1 4 1 Builder 4 | . . 1 . 3 Tunneler 4 | 4 . . . . Hauler 1 | . . 1 . . Recycler 10 | 1 . . 2 7 Watcher 4 | . . 2 1 1 Swarmer 16 | . . 3 5 8 Grunt 35 | . . 15 16 4 Brawler 1 | . . 1 . . Duelist 3 | . . 1 1 1 Sentry 16 | . . 10 5 1 Specialist 2 | . . . . 2 Hunter 4 | . . . . 4 Programmer 5 | . . . . 5 Best Kill Streak 6 | 3 . 4 4 6 Combat Bots Only 6 | . . 3 3 6 Max Kills in Single Turn 2 | 1 . 2 2 1 Gunslinging . | . . . . . Exploded 1 | . . 1 . . Melee . | . . . . . Uniques/NPCs Destroyed . | . . . . . Combat | -11 -10 -9 -8 -7 -------- Run | Yrd Mat Mat Mat Fac Hostile Shots Fired 521 | . . 139 147 235 Missed 127 | . . 39 34 54 Damage Taken 7689 | . . 1653 1798 4238 Core 1083 | . . 186 166 731 Absorbed by Shields . | . . . . . Redirected to Shielding 234 | . . 80 64 90 Core Remaining (%) 80 | 100 100 53 69 . Volleys Fired 311 | 8 . 101 108 94 Largest 3 | 2 . 2 2 3 Hottest 163 | 100 . 80 90 163 Shots Fired 674 | 16 . 198 216 244 Gun 504 | 16 . 168 150 170 Cannon 156 | . . 28 63 65 Launcher 14 | . . 2 3 9 Special . | . . . . . Kinetic 535 | . . 185 183 167 Thermal 111 | 16 . . 30 65 Explosive 14 | . . 2 3 9 Electromagnetic 14 | . . 11 . 3 Robot Hit Streak 17 | 9 . 14 17 12 Robot Miss Streak 6 | 1 . 6 4 5 Penetration Max 1 | . . . . 1 Secondary Targets 5 | . . 1 2 2 Max Gunslinging Chain 1 | . . 1 1 1 Shots Hit Robots 431 | 13 . 124 152 142 Core Hits 210 | 6 . 69 61 74 Critical Kills 3 | . . 3 . . Critical Parts Destroyed 1 | . . 1 . . Critical Strikes 14 | 2 . 7 3 2 Burn 3 | 2 . . . 1 Destroy 5 | . . 4 1 . Blast 6 | . . 3 2 1 Melee Attacks 15 | . . 15 . . Impact . | . . . . . Slashing 15 | . . 15 . . Piercing . | . . . . . Sneak Attacks . | . . . . . Combat Hostiles . | . . . . . Follow-up Attacks . | . . . . . Damage Inflicted 7649 | 164 . 1911 2722 2852 Guns 5020 | 164 . 1256 1808 1792 Cannons 1930 | . . 341 761 828 Explosions 672 | . . 303 145 224 Melee . | . . . . . Ramming 27 | . . 11 8 8 Kinetic 5288 | . . 1452 2199 1637 Thermal 1506 | 164 . 43 370 929 Explosive 629 | . . 260 145 224 Electromagnetic 199 | . . 145 . 54 Impact . | . . . . . Slashing . | . . . . . Piercing . | . . . . . Highest Corruption 26 | . 1 1 . 26 Average Corruption 6 | . 1 1 . 8 Corruption Purged . | . . . . . Corruption Blocked . | . . . . . Effects 36 | . . 1 . 35 Message Errors 7 | . . 1 . 6 Matter Fused 6 | . . . . 6 Heat Flow Errors 6 | . . . . 6 Energy Discharges 3 | . . . . 3 Data Loss (minor) 5 | . . . . 5 Data Loss (major) 2 | . . . . 2 Misfires 1 | . . . . 1 Alerts 1 | . . . . 1 Misdirections 2 | . . . . 2 Weapon Failures 3 | . . . . 3 Overload Shots . | . . . . . Overflow Damage 5 | . . . 5 . Projectiles . | . . . . . Explosions 5 | . . . 5 . Melee . | . . . . . Knockbacks 25 | . . 3 16 6 Impact 1 | . . 1 . . Kinetic 23 | . . 2 15 6 Secondary 1 | . . . 1 . Self-Inflicted Damage 125 | . . 55 48 22 Shots 4 | . . 2 1 1 Rammed 7 | . . 1 4 2 Targets Rammed 8 | . . 1 5 2 Kicked . | . . . . . Crushed 1 | . . . 1 . Highest Temperature 307 | 117 . 307 168 276 Average Temperature 44 | 39 . 23 43 56 Received Heat Transfer 1698 | . . 525 864 309 Effects 3 | . . 3 . . Energy Bleed 1 | . . 1 . . Interference 2 | . . 2 . . Siege Activations . | . . . . . Robots Corrupted . | . . . . . Combat Hostiles . | . . . . . Parts Fried . | . . . . . Impact Corruptions . | . . . . . Robots Melted . | . . . . . Combat Hostiles . | . . . . . Parts Melted 9 | 4 . . . 5 Heat Transferred 2978 | 629 . . 703 1646 Parts Sabotaged . | . . . . . Parts Stolen . | . . . . . Parts Stripped . | . . . . . Power Chain Reactions 1 | . . 1 . . Alert | -11 -10 -9 -8 -7 ------- Run | Yrd Mat Mat Mat Fac Peak Influence 647 | 25 78 486 647 628 Initial 282 | . 16 32 73 282 Average 262 | 9 23 226 294 460 Maximum Alert Level 2 | . . 2 2 2 Low Security (%) 43 | 100 100 52 33 . Level 1 30 | . . 35 43 27 Level 2 26 | . . 12 23 72 Level 3 . | . . . . . Level 4 . | . . . . . Level 5 . | . . . . . High Security . | . . . . . Max Security . | . . . . . Squads Dispatched 21 | . 3 2 2 14 Investigation 6 | . 2 . 2 2 Extermination 3 | . . . . 3 Reinforcement 9 | . 1 2 . 6 Assault . | . . . . . Garrison 3 | . . . . 3 Intercept . | . . . . . Searches Triggered . | . . . . . Construction Impeded 2 | . . . . 2 Haulers Reinforced . | . . . . . Active Scanning Responses . | . . . . . Cargo Convoy Interrupts 1 | . . . . 1 Stealth | -11 -10 -9 -8 -7 --------- Run | Yrd Mat Mat Mat Fac Distress Signals 14 | . . 6 7 1 Communications Jammed . | . . . . . Distress Signals . | . . . . . Times Spotted 173 | . 10 59 50 54 Peak Tracking Total 8 | . 3 5 7 8 Tactical Retreats 14 | . . 3 5 6 Traps | -11 -10 -9 -8 -7 ------- Run | Yrd Mat Mat Mat Fac Traps Triggered 9 | . . 1 1 7 Indirectly . | . . . . . Trap Hack Attempts . | . . . . . Triggered . | . . . . . Disarmed . | . . . . . Reprogrammed . | . . . . . Reused . | . . . . . Traps Extracted . | . . . . . Installed . | . . . . . Triggered . | . . . . . Machines | -11 -10 -9 -8 -7 ---------- Run | Yrd Mat Mat Mat Fac Machines Disabled 4 | . . . 2 2 Max in Single Turn 1 | . . . 1 1 Machines Repaired . | . . . . . Machines Dismantled . | . . . . . Machines Sabotaged . | . . . . . Overloaded Fab Kills . | . . . . . Hacking | -11 -10 -9 -8 -7 --------- Run | Yrd Mat Mat Mat Fac Machines Accessed 26 | . 6 10 6 4 Terminals 24 | . 6 10 6 2 Fabricators 1 | . . . . 1 Repair Stations . | . . . . . Recycling Units . | . . . . . Scanalyzers . | . . . . . Garrison Access 1 | . . . . 1 Total Hacks 73 | . 15 33 19 6 Successful 34 | . 9 15 6 4 Failed 39 | . 6 18 13 2 Catastrophic 3 | . . . 2 1 Database Lockouts . | . . . . . Manual 56 | . 12 27 15 2 Terminals 70 | . 15 33 19 3 Fabricators 1 | . . . . 1 Repair Stations . | . . . . . Recycling Units . | . . . . . Scanalyzers . | . . . . . Garrison Access 2 | . . . . 2 Terminal Hacks 5 | . 1 2 . 2 Robot Analysis 1 | . 1 . . . Open DSF 2 | . . . . 2 Unreport Threat 2 | . . 2 . . Fabricator Hacks 1 | . . . . 1 Network Status 1 | . . . . 1 Repair Station Hacks . | . . . . . Recycling Unit Hacks . | . . . . . Scanalyzer . | . . . . . Garrison Access Hacks . | . . . . . Unauthorized Hacks 28 | . 8 13 6 1 Terminals 27 | . 8 13 6 . Track 6 | . . 4 2 . Botnet 8 | . 2 3 3 . Operators 1 | . . 1 . . Skim 12 | . 6 5 1 . Fabricators . | . . . . . Repair Stations . | . . . . . Recycling Units . | . . . . . Scanalyzers . | . . . . . Garrison Access 1 | . . . . 1 Reprogram 1 | . . . . 1 Data Cores Recovered . | . . . . . Used . | . . . . . Hacking Detections 22 | . 3 10 6 3 Full Trace Events 3 | . 1 1 1 . Feedback Events 1 | . 1 . . . Corruption 1 | . 1 . . . Feedback Blocked . | . . . . . Robot Schematics Acquired . | . . . . . Robots Built . | . . . . . Authchips . | . . . . . Time . | . . . . . Total Robot Build Rating . | . . . . . Part Schematics Acquired . | . . . . . Parts Built . | . . . . . Authchips . | . . . . . Time . | . . . . . Total Part Build Rating . | . . . . . Parts Repaired . | . . . . . Time . | . . . . . Parts Recycled . | . . . . . Recycled Matter . | . . . . . Retrieved Matter . | . . . . . Retrieved Components . | . . . . . Parts Scanalyzed . | . . . . . Part Schematics Acquired . | . . . . . Parts Damaged . | . . . . . Bothacking | -11 -10 -9 -8 -7 ------------ Run | Yrd Mat Mat Mat Fac Used RIF Installer . | . . . . . Robots Hacked . | . . . . . Non-combat . | . . . . . Combat . | . . . . . Robot Hacks Applied . | . . . . . Relay Couplers Released 3 | . . . . 3 Programmers 3 | . . . . 3 Fabnet Peak Effective % . | . . . . . Robots Rewired . | . . . . . Allies Hacked . | . . . . . Hacks Repelled . | . . . . . Allies | -11 -10 -9 -8 -7 -------- Run | Yrd Mat Mat Mat Fac Total Allies 1 | . . . . 1 Largest Group 1 | . . . . 1 Highest-Rated Group 55 | . . . . 55 Highest-Rated Ally 55 | . . . . 55 Total Orders . | . . . . . Ally Attacks 2 | . . . . 2 Total Damage 30 | . . . . 30 Kills . | . . . . . Allies Corrupted . | . . . . . Allies Melted . | . . . . . Intel | -11 -10 -9 -8 -7 ------- Run | Yrd Mat Mat Mat Fac Robot Analysis Total 1 | . 1 . . . Derelict Logs Recovered . | . . . . . Drone Launches . | . . . . . Drone Recoveries . | . . . . . Exploration | -11 -10 -9 -8 -7 ------------- Run | Yrd Mat Mat Mat Fac Turns Passed 8314 | 135 1082 3451 1816 1830 Spaces Moved 5843 | 120 1286 2241 1080 1116 Core 6 | 2 . . . 4 Treads 956 | . . 498 347 111 Legs 277 | . . 214 . 63 Wheels 4604 | 118 1286 1529 733 938 Hover . | . . . . . Flight . | . . . . . Fastest Speed 50 | 50 80 80 105 100 Average Speed 112 | 79 80 121 123 126 Slowest Speed 400 | 80 80 190 240 400 Overloaded Moves . | . . . . . Propulsion Burnouts . | . . . . . Robots Hopped . | . . . . . Cave-ins Triggered 2 | . . . . 2 Exploration Rate (%) 56 | 4 98 98 60 23 Regions Visited 4 Branch Regions . Pre-discovered Areas 3 | . . 3 . . Known Exits Taken 2 | . . 1 1 . Unknown Exits Taken 2 | 1 1 . . . Scrap Searched . | . . . . . Spaces Dug 26 | . . 14 . 12 Terrain Destroyed 118 | . . 31 23 64 Melee 14 | . . 14 . . Projectile 17 | . . . . 17 AOE 87 | . . 17 23 47 Terrain Rammed . | . . . . . Walls Destroyed . | . . . . . Machines Disabled . | . . . . . Actions | -11 -10 -9 -8 -7 --------- Run | Yrd Mat Mat Mat Fac Total 6992 | 139 1351 2764 1385 1353 Wait 478 | . 29 290 145 14 Move 5839 | 119 1285 2240 1079 1116 Hop . | . . . . . Pick Up 66 | 5 12 17 10 22 Fast Attach 56 | 7 2 20 9 18 Attach 36 | . . 8 4 24 Detach 5 | . . 3 1 1 Swap 66 | . 6 32 11 17 Drop 86 | . 17 37 13 19 Fire 311 | 8 . 101 108 94 Melee 15 | . . 15 . . Ram 2 | . . . . 2 Kick . | . . . . . Crush 6 | . . 1 5 . Escape Stasis 26 | . . . . 26 Rewire . | . . . . . Trap . | . . . . . Miscellaneous . | . . . . . Route ------- -11/Scrapyard -10/Materials (discovered 5 exits: *Mat x3 / [*Min x2]) -9/Materials (discovered 4 exits: *Mat x3 / *Min) -8/Materials (discovered 2 exits: *Fac x2) -7/Factory (discovered 1 exit: Sto) History --------- Turn | Location | Event 24 | -11/Scrapyard | Discovered new exit (range 15) 136 | -11/Scrapyard | Entered Materials 301 | -10/Materials | Build established: Mutant 503 | -10/Materials | Discovered new exit (range 15) 586 | -10/Materials | Discovered new exit (range 15) 669 | -10/Materials | Discovered new exit (range 6) 786 | -10/Materials | Discovered new exit (range 13) 1011 | -10/Materials | Discovered new exit (range 3) 1164 | -10/Materials | Learned Storage garrison access intel 1218 | -10/Materials | Entered another Materials area 1218 | -9/Materials | Evolved 2 slots: Propulsion x1, Utility x1 1872 | -9/Materials | Discovered new exit (range 16) 1955 | -9/Materials | Build established: Scavenger-Mutant 2319 | -9/Materials | Build established: Mutant 2598 | -9/Materials | Discovered new exit (range 8) 3185 | -9/Materials | Learned Storage trap positions 3257 | -9/Materials | Learned location of Storage (-7) 3317 | -9/Materials | Learned Storage stockpile data 3410 | -9/Materials | Learned Storage stockpile data 3439 | -9/Materials | Identified exit to Mines 3439 | -9/Materials | Identified exit to Materials 3460 | -9/Materials | Learned Storage terminal intel 4669 | -9/Materials | Entered another Materials area 4669 | -8/Materials | Evolved 2 slots: Propulsion x1, Utility x1 5379 | -8/Materials | Discovered new exit (range 5) 5981 | -8/Materials | Lost 4 parts (4n) 6266 | -8/Materials | Build established: Scavenger-Mutant 6360 | -8/Materials | Discovered new exit (range 16) 6412 | -8/Materials | Identified exit to Factory 6485 | -8/Materials | Entered Factory 6485 | -7/Factory | Evolved 2 slots: Utility x1, Weapon x1 6486 | -7/Factory | Identified exit to Storage 6574 | -7/Factory | Identified exit to DSF 6801 | -7/Factory | Lost 4 parts (1n2u1w) 6840 | -7/Factory | Build established: Scavenger-Tank 7085 | -7/Factory | Lost 3 parts (2n1w) 7349 | -7/Factory | Lost 3 parts (1n2w) 7825 | -7/Factory | Cargo convoy interrupted 7838 | -7/Factory | Garrison activated, responded to threat 7886 | -7/Factory | Crushed by falling debris 7886 | -7/Factory | System corruption reached 10% 7910 | -7/Factory | Crushed by falling debris 7910 | -7/Factory | Core integrity fell below 50% 7958 | -7/Factory | Lost 14 parts (2p4n2u6w) 8286 | -7/Factory | Lost 8 parts (2p3n2u1w) 8295 | -7/Factory | Core integrity fell below 20% 8315 | -7/Factory | Destroyed by H-61 Shepherd with Heavy Assault Cannon Last Messages --------------- 08301_ Knocked back. 08303_ Acquired 4 matter. 08305_ Carbon-fiber Leg destroyed. 08305_ Knocked back. 08307_ Com. Wheel destroyed. 08307_ Hvy. Ion Cannon destroyed. 08307_ Knocked back. 08308_ Acquired 13 matter. 08309_ Slammed into H-61 Shepherd. 08309_ H-61 Shepherd calls for reinforcements. 08309_ ALERT: Hostile activity reported, dispatching reinforcements to area. 08309_ System Shield destroyed. 08309_ Critical hit (Blast). 08309_ Knocked back. 08311_ Penetrated by Slug. 08311_ Knocked back. 08314_ BCWSJHE>DKWD#AX0&0TCRSW, LQRAJQ 08314_ Acquired 6 matter. 08315_ Penetrated by Slug. Map ----- +----------------------------------------------------+ | #?????????????????????????????????????????????? | | "" #?????????????????????????????????????????????? | | "" #?????????????????????????????????????????????? | | "" #?????????????????????????????????????????????? | | #?????????????????????????????????????????????? | | #?????????????????????????????????????????????? | | #?????????????????????????????????????????????? | | #?????????????????????????????????????????????? | | # #?????#####???????????????????????????????????? | | # ###### ??????????????????????????????????? | | # ????? #???????????????????????????? | | # """ # "???? +???????????????????????????? | | "R " # ""?? #???????????????????????????? | | """ " # """? ????????????????????????????? | | """ " # """" #????????????????????????????? | | " # """" #????????????????????????????? | | " # """" #????##############??????????? | | " # #????# #??????????? | | " # #????# #??????????? | | " # #????# #??????????? | | " # #????# #??????????? | | # " #????# #??????????? | | ######## "" ##???# #??????????? | | G ##### % #??????????? | | !! "" ##;## % % #??????????? | | !! " gg%H% @ ! #??????????? | | #####% #??????????? | | ? #???# #??????????? | | ################ #???# u #??????????? | | #????????????# ? "##########+########### ???? | | " #????????????# ??? | | ""#????????????# ??? | | R"#????????????# ??? | | ""############## """""" """""" ???? | | # # ? % """""" """???????? | | # # % / """""" """???????? | | # # !!! ] """""" ""????????? | | ### # !!? ???????? | | ??# # !!!% """""" ??????? | | ??# + %%? """""" ??????????? | | ??# # """"""???????????? | | ??# + """"""???????????? | | ??# ##### ?????????????? | | ??# #???# "" "" """"?????????????? | | ??# #???# """""" """"?????????????? | | ??# #???# """""" """??????????????? | | ??#####+######+#???# """""" ""???????????????? | | ??????# #????# #???# ??? ????????????????? | | ??????# #????# #???# ??? ????????????????? | | ??????# ##???# #???######+###??##????????????????? | +----------------------------------------------------+ Best States ------------- Heat Dissipation 48 Energy Generation 16 Energy Capacity 490 Matter Stores 450 Matter Capacity 450 Sight Range 16 Robot Scan Range 15 Terrain Scan Density 210 Additional Mass Support 6 Armor Coverage 450 Resistance: EX 25 Core Shielding 20 Power Shielding 66 Weapon Shielding 33 Evasion (%) 55 Melee Accuracy 5 Recoil Reduction 3 Kinecelleration 30 Defensive Hacking 10 Item Schematics ----------------- None Robot Schematics ------------------ None Fabricated ------------ Nothing Alien Tech Used ----------------- None Achievements -------------- None Challenges ------------ None Game ------ Seed CompositeThrusterMace Manual? 0 Play Time 01:25:03 Cumulative 21.0 hours Start 2024.08.13 @ 08:18:08 End 2024.08.13 @ 17:14:28 Sessions 5 Manual Loads 0 Difficulty Rogue Special Mode None Game No. 22 Rogue 22 Adventurer 0 Explorer 0 Win Type - Total 0 Types 0/0/0/0/0/0/0/0/0 Lore% 13 Gallery% 26 Achievement% 22 Wizard Run 0 Options --------- Layout 2 ASCII 0 Keyboard 1 Movement Arrows Keybinds 0 Fullscreen 2 Font 20/SmallcapsGlow Map View 56x54 Zoom Use 0% Tactical HUD 1 Map Filters NONE Filters NONE Steam X RUN: 17ed8a12-f380-43f2-875c-e870f17b596a